bitfinex-derivatives/quotes_BTCF0:USTF0_20251103
["timestamp","ask_amount","ask_price","bid_price","bid_amount"]
[1762184074702,0.76396,105890.0,105870.0,0.33480985]
[1762184075101,0.3488,105890.0,105870.0,0.33480985]
[1762184075408,1.8608,105910.0,105880.0,0.89795544]
[1762184075699,0.3638,105930.0,105900.0,0.60003482]
[1762184075901,0.77896,105930.0,105910.0,0.27273956]
[1762184076096,2.27896,105930.0,105910.0,0.27273956]
[1762184076405,0.41816,105930.0,105920.0,0.23923482]
[1762184076599,0.5125918,105930.0,105920.0,0.23923482]
[1762184076795,2.3733918,105930.0,105920.0,0.23923482]
[1762184077192,2.3733918,105930.0,105910.0,0.03350474]
[1762184077394,0.094449,105910.0,105900.0,0.63358483]
[1762184077702,0.094449,105910.0,105900.0,0.28949744]
[1762184077906,0.094449,105910.0,105900.0,0.65029744]
[1762184078104,1.91816,105930.0,105900.0,0.74475564]
[1762184078105,0.0944449,105920.0,105900.0,0.74475564]
[1762184078300,0.003,105930.0,105920.0,0.38353482]
[1762184078500,0.3638,105970.0,105930.0,0.0944252]
[1762184078802,0.0944095,105960.0,105950.0,0.3608]
[1762184079002,0.0944095,105960.0,105950.0,0.60003482]
[1762184079203,0.0944095,105960.0,105950.0,0.23923482]
[1762184079403,0.003,105970.0,105950.0,0.23923482]
[1762184079602,0.003,105970.0,105960.0,0.74433482]
[1762184080208,0.003,105970.0,105960.0,0.38353482]
[1762184080402,0.003,105970.0,105960.0,0.74433482]
[1762184080907,0.003,105970.0,105950.0,0.3608]
[1762184081098,0.003,105970.0,105950.0,0.60003482]
[1762184081299,0.003,105970.0,105950.0,0.3608]
[1762184081503,0.003,105970.0,105960.0,0.5051]
[1762184081703,0.3608,106000.0,105970.0,0.0943942]
[1762184082011,2.2788,106010.0,105980.0,0.3608]
[1762184082307,1.918,106010.0,105980.0,0.23923482]
[1762184082511,0.3608,106000.0,105990.0,0.23923482]
[1762184083203,0.3608,106000.0,105970.0,0.3608]
[1762184083204,0.59668,106000.0,105970.0,0.3608]
[1762184083410,0.59668,106000.0,105970.0,0.08385898]
[1762184083411,0.3608,106000.0,105970.0,0.08385898]
[1762184083602,0.3608,105980.0,105970.0,0.03354359]
[1762184083808,0.77568,105980.0,105970.0,0.03354359]
[1762184084206,0.77568,105980.0,105960.0,0.27277841]
[1762184084405,0.3608,105970.0,105960.0,0.03354359]
[1762184085411,0.3608,105990.0,105960.0,0.63357841]
[1762184085606,0.7756,105980.0,105970.0,0.23923482]
[1762184085806,0.3608,105980.0,105960.0,0.03354359]
[1762184086007,0.59672,105970.0,105950.0,0.03354359]
[1762184086310,0.0944123,105950.0,105940.0,8.852e-05]
[1762184086507,0.0944212,105940.0,105930.0,0.28955021]
[1762184086705,0.0944212,105940.0,105930.0,0.60003482]
[1762184086911,0.09453477,105950.0,105930.0,0.69446542]
[1762184087111,0.09453477,105950.0,105940.0,0.28955686]
[1762184087410,0.00011737,105950.0,105940.0,0.05033653]
[1762184087606,0.36091737,105950.0,105940.0,0.05033653]
[1762184087811,0.36091737,105950.0,105930.0,0.28957135]
[1762184088014,0.00011737,105950.0,105940.0,0.28957135]
[1762184088305,0.36091737,105950.0,105940.0,0.05033653]
[1762184088506,0.36091737,105950.0,105940.0,0.05433653]
[1762184088901,0.36091737,105950.0,105940.0,0.004]
[1762184089514,0.59687737,105950.0,105940.0,0.004]
[1762184089714,0.00999999,105990.0,105940.0,0.004]
[1762184089715,0.3608,105990.0,105940.0,1.08973246]
[1762184090006,0.41464,106000.0,105980.0,0.3608]
[1762184090208,1.87303631,106010.0,105980.0,0.3608]
[1762184090209,1.51223631,106010.0,105980.0,0.3608]
[1762184090510,1.503,106010.0,105990.0,0.60003482]
[1762184090702,0.41464,106000.0,105990.0,0.60003482]
[1762184090906,0.41464,106000.0,105990.0,0.3608]
[1762184091210,0.41464,106000.0,105990.0,0.60003482]
[1762184091407,0.41464,106000.0,105990.0,0.23923482]
[1762184091601,1.503,106010.0,105990.0,0.60003482]
[1762184091805,1.503,106010.0,106000.0,0.3608]
[1762184092312,0.003,106010.0,106000.0,0.60003482]
[1762184093610,0.0973614,106010.0,106000.0,0.60003482]
[1762184094003,0.0973611,106010.0,106000.0,0.60003482]
[1762184095117,0.0973611,106010.0,106000.0,0.60103482]
[1762184095515,0.0973611,106010.0,106000.0,0.24023482]
[1762184095715,0.0973611,106010.0,106000.0,0.001]
[1762184096117,0.6940011,106010.0,106000.0,1e-07]
[1762184096312,0.003,106010.0,106000.0,0.60003492]
[1762184096616,0.41736,106010.0,106000.0,0.69440492]
[1762184096821,0.003,106010.0,106000.0,0.60003492]
[1762184097017,0.003,106010.0,106000.0,0.69440492]
[1762184097612,0.003,106010.0,106000.0,0.60003492]
[1762184098122,0.004,106010.0,106000.0,0.60003482]
[1762184098325,0.0983611,106010.0,106000.0,0.60003482]
[1762184098514,0.0983611,106010.0,106000.0,0.23923482]
[1762184098714,0.0973611,106010.0,106000.0,0.60203482]
[1762184098916,0.0973611,106010.0,106000.0,0.24123482]
[1762184099310,0.4581611,106010.0,106000.0,0.002]
[1762184099528,0.0973611,106010.0,106000.0,0.002]
[1762184099820,0.4581611,106010.0,106000.0,0.002]
[1762184100422,0.6630011,106010.0,105970.0,0.05033653]
[1762184100618,0.3608,105980.0,105960.0,0.05033653]
[1762184100920,0.77492,105970.0,105950.0,0.05033653]
[1762184101322,0.77492,105970.0,105960.0,0.23923482]
[1762184101620,0.77488,105970.0,105960.0,0.23923482]
[1762184101925,0.3608,105990.0,105960.0,0.74477335]
[1762184102218,0.41404,105990.0,105980.0,0.41113653]
[1762184102519,0.41604,106010.0,105980.0,0.69442272]
[1762184102721,0.3628,106010.0,105990.0,0.28969854]
[1762184102925,0.77684,106010.0,105980.0,0.65049854]
[1762184103124,0.41604,106010.0,105980.0,0.65049854]
[1762184103321,0.41604,106010.0,105990.0,0.41126372]
[1762184103626,0.002,106010.0,106000.0,0.3608]
[1762184103832,0.002,106010.0,106000.0,0.69440492]
[1762184104136,0.3608,106040.0,106000.0,0.74486234]
[1762184104430,0.7754,106050.0,106020.0,0.3608]
[1762184104632,0.3608,106040.0,106030.0,0.23923482]
[1762184104821,0.7216,106040.0,106000.0,0.05046372]
[1762184105026,0.3608,106030.0,106000.0,0.50563222]
[1762184105225,0.00990893,106040.0,106020.0,0.3608]
[1762184105422,0.00990893,106040.0,106020.0,0.37555112]
[1762184105626,0.001,106040.0,106020.0,0.37555112]
[1762184105829,1.8614,106050.0,106020.0,0.42601484]
[1762184106036,1.8614,106050.0,106030.0,0.3608]
[1762184106223,2.29228,106050.0,106030.0,0.25398594]
[1762184106531,2.29228,106050.0,106040.0,0.23923482]
[1762184106726,2.29228,106050.0,106040.0,0.25398594]
[1762184106928,2.29228,106050.0,106040.0,0.01475112]
[1762184107126,2.29228,106050.0,106040.0,0.25398594]
[1762184107326,2.29228,106050.0,106040.0,0.01475112]
[1762184107524,1.93148,106050.0,106040.0,0.01475112]
[1762184107726,2.29228,106050.0,106040.0,0.01475112]
[1762184108033,0.0943612,106010.0,106000.0,0.0514426]
[1762184108332,0.0943612,106010.0,106000.0,0.23923482]
[1762184108530,0.3608,106040.0,106000.0,0.69440082]
[1762184108831,1.60415417,106050.0,106030.0,0.3608]
[1762184109024,0.002,106040.0,106030.0,0.3618]
[1762184109327,0.002,106040.0,106030.0,0.69537822]
[1762184109832,0.002,106040.0,106030.0,0.60003482]
[1762184110025,0.0006,106050.0,106030.0,0.60003482]
[1762184110226,0.003,106090.0,106050.0,0.2217614]
[1762184110527,0.003,106090.0,106080.0,0.3608]
[1762184110723,0.003,106090.0,106080.0,0.60003482]
[1762184110929,0.003,106090.0,106080.0,0.72747482]
[1762184111129,0.003,106090.0,106080.0,0.82177372]
[1762184111532,0.3608,106120.0,106090.0,0.0942893]
[1762184111732,0.3638,106130.0,106080.0,0.82175218]
[1762184111733,0.3638,106130.0,106100.0,0.60003482]
[1762184111927,1.5,106120.0,106100.0,0.3608]
[1762184112127,0.003,106130.0,106120.0,0.12744]
[1762184112435,0.3638,106170.0,106120.0,0.48824]
[1762184112629,0.3608,106150.0,106120.0,0.3608]
[1762184112930,0.3608,106140.0,106120.0,0.3608]
[1762184113232,0.3608,106140.0,106110.0,0.3608]
[1762184113233,0.3608,106130.0,106110.0,0.3608]
[1762184113534,0.3638,106130.0,106110.0,0.3608]
[1762184113738,0.003,106130.0,106120.0,0.3608]
[1762184114235,0.01157828,106170.0,106120.0,0.82173762]
[1762184114430,0.37237828,106170.0,106130.0,0.60003482]
[1762184114635,0.01157828,106170.0,106150.0,0.3608]
[1762184114836,0.37237828,106170.0,106140.0,0.3608]
[1762184115137,0.37237828,106170.0,106140.0,0.60003482]
[1762184115534,0.0942367,106150.0,106140.0,0.3608]
[1762184115741,0.0942456,106140.0,106120.0,0.48824]
[1762184115932,0.0942456,106140.0,106130.0,0.3608]
[1762184116239,0.0942456,106140.0,106130.0,0.60003482]
[1762184116636,0.0942456,106140.0,106100.0,0.3942536]
[1762184116637,0.4550456,106140.0,106100.0,0.3942536]
[1762184116836,0.3608,106110.0,106080.0,0.0334536]
[1762184117032,0.48939,106120.0,106090.0,0.3608]
[1762184117234,0.3608,106120.0,106110.0,0.12753]
[1762184117436,0.033,106150.0,106140.0,0.12753]
[1762184117634,0.37237828,106170.0,106140.0,0.51549306]
[1762184117835,1.8608,106160.0,106150.0,0.1124384]
[1762184118037,1.8608,106160.0,106150.0,0.03344048]
[1762184118238,0.012,106170.0,106150.0,0.50040111]
[1762184118437,0.012,106170.0,106160.0,0.43979792]
[1762184118643,0.012,106170.0,106160.0,0.46696063]
[1762184118834,0.012,106170.0,106160.0,0.59462901]
[1762184119037,0.012,106170.0,106160.0,0.59462891]
[1762184119435,0.37210629,106210.0,106160.0,0.59179111]
[1762184119630,0.37210629,106210.0,106170.0,0.3608]
[1762184119835,1.5,106200.0,106190.0,0.03344048]
[1762184120037,1.8608,106200.0,106190.0,0.06060319]
[1762184120341,1.98939,106200.0,106190.0,0.02716271]
[1762184120530,1.62859,106200.0,106190.0,0.02716271]
[1762184120944,1.5,106200.0,106190.0,0.10616063]
[1762184121347,0.3608,106220.0,106200.0,0.12753]
[1762184121548,0.003,106250.0,106240.0,0.12744]
[1762184121733,0.3638,106250.0,106240.0,0.02716271]
[1762184121933,0.003,106250.0,106240.0,0.10616063]
[1762184122139,0.003,106250.0,106240.0,0.02716271]
[1762184122340,0.003,106250.0,106240.0,0.07899792]
[1762184122542,0.003,106250.0,106240.0,0.43979792]
[1762184122738,0.003,106250.0,106240.0,0.07899792]
[1762184122940,0.59912,106250.0,106210.0,0.3943164]
[1762184123141,0.3608,106240.0,106210.0,0.38789866]
[1762184123441,0.3608,106240.0,106210.0,0.02709866]
[1762184123442,0.3608,106220.0,106210.0,0.02709866]
[1762184123642,0.77336,106230.0,106210.0,0.02709866]
[1762184123839,0.016,106220.0,106210.0,0.46689658]
[1762184124241,0.016,106220.0,106210.0,0.56107988]
[1762184124439,0.016,106220.0,106210.0,0.46689658]
[1762184124639,0.016,106220.0,106210.0,0.47089658]
[1762184124845,0.3608,106240.0,106210.0,0.57307948]
[1762184125040,0.45842999,106290.0,106240.0,0.12753]
[1762184125041,0.3608,106270.0,106240.0,0.12753]
[1762184125349,0.003,106290.0,106260.0,0.7216]
[1762184125644,0.5065213,106280.0,106270.0,0.3608]
[1762184125843,0.4124,106280.0,106270.0,0.3608]
[1762184126047,0.5065213,106280.0,106270.0,0.3608]
[1762184126640,0.0941392,106260.0,106250.0,0.3608]
[1762184126950,1.5941481,106250.0,106240.0,0.3608]
[1762184127341,2.0064681,106250.0,106240.0,0.3608]
[1762184127542,1.5941481,106250.0,106240.0,0.43979792]
[1762184127738,2.0064681,106250.0,106240.0,0.43979792]
[1762184127951,2.0064681,106250.0,106240.0,0.3608]
[1762184128347,2.0064681,106250.0,106230.0,0.43979792]
[1762184128540,2.2417881,106250.0,106240.0,0.3608]
[1762184128740,0.36062,106240.0,106220.0,0.3608]
[1762184128940,0.1253,106240.0,106220.0,0.3608]
[1762184129143,0.1253,106240.0,106230.0,0.3608]
[1762184129350,1.5,106250.0,106230.0,0.3608]
[1762184129563,1.5,106250.0,106240.0,0.53395402]
[1762184130063,1.5,106250.0,106240.0,0.44279792]
[1762184130362,1.502,106250.0,106240.0,0.457957]
[1762184130561,1.502,106250.0,106240.0,0.53695492]
[1762184130762,1.1439314,106250.0,106240.0,0.66942492]
[1762184130961,0.41216,106280.0,106250.0,0.3608]
[1762184131164,0.41216,106280.0,106270.0,0.7216]
[1762184131357,0.41216,106280.0,106270.0,0.3608]
[1762184131855,0.003,106290.0,106270.0,0.43979792]
[1762184132059,0.003,106290.0,106280.0,0.3608]
[1762184132460,0.2382,106290.0,106270.0,0.3608]
[1762184132664,0.003,106290.0,106280.0,0.3608]
[1762184132962,0.003,106290.0,106270.0,0.3608]
[1762184133365,0.003,106290.0,106260.0,0.3608]
[1762184133366,1.73524,106280.0,106260.0,0.3608]
[1762184133663,1.5,106280.0,106270.0,0.3608]
[1762184133861,1.91204,106280.0,106270.0,0.3608]
[1762184134063,1.91204,106280.0,106270.0,0.43979792]
[1762184134461,1.5,106280.0,106270.0,0.43979792]
[1762184134862,0.003,106290.0,106270.0,0.53389785]
[1762184135057,0.003,106290.0,106280.0,0.43979792]
[1762184135268,0.003,106290.0,106280.0,0.02696509]
[1762184135456,0.0941189,106280.0,106270.0,0.39424048]
[1762184135763,0.4546589,106280.0,106270.0,0.3608]
[1762184135966,0.5061189,106280.0,106270.0,0.43979792]
[1762184136158,0.0941189,106280.0,106270.0,0.43979792]
[1762184136366,0.003,106290.0,106270.0,0.53389342]
[1762184136566,1.503,106290.0,106280.0,0.43979792]
[1762184136760,1.503,106290.0,106280.0,0.3608]
[1762184136961,1.503,106290.0,106280.0,0.43979792]
[1762184138066,1.503,106290.0,106280.0,0.53391782]
[1762184138368,0.003,106290.0,106280.0,0.43979792]
[1762184138574,0.003,106330.0,106290.0,0.0941031]
[1762184138868,0.003,106330.0,106310.0,0.3608]
[1762184139069,0.003,106330.0,106310.0,0.43979792]
[1762184139377,0.003,106330.0,106320.0,0.07899792]
[1762184139563,0.003,106330.0,106320.0,0.43979792]
[1762184139964,0.003,106330.0,106310.0,0.43979792]
[1762184140171,0.003,106330.0,106320.0,0.3608]
[1762184140671,0.003,106330.0,106320.0,0.43979792]
[1762184140969,0.003,106330.0,106320.0,0.3608]
[1762184141173,0.64992,106330.0,106320.0,0.3608]
[1762184141564,0.003,106330.0,106310.0,0.3608]
[1762184141772,0.003,106330.0,106320.0,0.3638]
[1762184141972,0.59892,106330.0,106310.0,0.001]
[1762184142166,0.72122,106320.0,106310.0,0.001]
[1762184142362,0.53702,106320.0,106310.0,0.3618]
[1762184142563,0.41172,106320.0,106310.0,0.3618]
[1762184142762,0.003,106330.0,106310.0,0.44079792]
[1762184142963,0.0940848,106320.0,106300.0,0.39424048]
[1762184143168,0.094102,106300.0,106290.0,0.39435034]
[1762184143370,0.094102,106300.0,106290.0,0.52303909]
[1762184143774,0.690102,106300.0,106280.0,0.04969083]
[1762184143983,0.77244,106290.0,106270.0,0.04969083]
[1762184144273,0.48662726,106290.0,106270.0,0.48948875]
[1762184144470,0.41727184,106320.0,106280.0,0.3608]
[1762184144471,0.1253,106320.0,106280.0,0.3608]
[1762184144664,7.911e-05,106310.0,106300.0,0.3608]
[1762184145086,7.911e-05,106310.0,106300.0,0.48948875]
[1762184145268,7.911e-05,106310.0,106300.0,0.43979792]
[1762184145671,0.23523911,106310.0,106290.0,0.41249083]
[1762184145865,0.6468,106300.0,106290.0,0.002]
[1762184146080,0.12127,106290.0,106280.0,0.04969083]
[1762184146275,0.7914935,106290.0,106270.0,0.04969083]
[1762184146772,0.7915335,106290.0,106270.0,0.04969083]
[1762184146972,0.3608,106280.0,106270.0,0.04969083]
[1762184147574,0.3608,106280.0,106270.0,0.07607093]
[1762184148171,7.178e-05,106290.0,106270.0,0.46617802]
[1762184148374,7.178e-05,106290.0,106280.0,0.43979792]
[1762184148679,7.178e-05,106290.0,106280.0,0.45406973]
[1762184149381,0.00507178,106290.0,106280.0,0.53306765]
[1762184149577,0.00507178,106290.0,106280.0,0.56030022]
[1762184149765,0.43720901,106330.0,106280.0,0.55039272]
[1762184150069,0.43720901,106330.0,106310.0,0.05028211]
[1762184150380,0.41148,106320.0,106310.0,0.07666221]
[1762184150877,1.12871,106320.0,106300.0,0.05030425]
[1762184151176,0.89355,106320.0,106300.0,0.05030425]
[1762184151369,0.3608,106310.0,106300.0,0.05030425]
[1762184151568,0.3608,106310.0,106280.0,0.42784282]
[1762184151977,0.3608,106310.0,106280.0,0.52196212]
[1762184152278,0.094102,106300.0,106290.0,0.42784282]
[1762184152673,0.094102,106300.0,106290.0,0.58350295]
[1762184152878,0.0941092,106290.0,106280.0,0.58350295]
[1762184153079,0.0941092,106290.0,106280.0,0.58450295]
[1762184153272,0.454894,106310.0,106280.0,0.58450295]
[1762184153473,0.094094,106310.0,106300.0,0.3608]
[1762184153671,0.0941036,106300.0,106290.0,0.3608]
[1762184153974,0.0941036,106300.0,106280.0,0.42884282]
[1762184154177,0.4549106,106290.0,106280.0,0.06804282]
[1762184154576,0.4549106,106290.0,106280.0,0.001]
[1762184154776,0.8662306,106290.0,106280.0,0.001]
[1762184154974,0.0941213,106280.0,106270.0,0.42784282]
[1762184155281,0.8662306,106290.0,106270.0,0.42784282]
[1762184155282,0.0941126,106290.0,106280.0,0.15566013]
[1762184155479,0.0941126,106290.0,106280.0,0.65495061]
[1762184155776,0.0941124,106290.0,106280.0,0.60067483]
[1762184155980,0.0941124,106290.0,106280.0,0.72215536]
[1762184156179,0.0951124,106290.0,106280.0,0.58366488]
[1762184156381,0.0951124,106290.0,106280.0,0.51646013]
[1762184156881,0.0951124,106290.0,106280.0,1.14829531]
[1762184157081,0.0951124,106290.0,106280.0,1.00980483]
[1762184157483,0.0951124,106290.0,106280.0,0.92559013]
[1762184157785,0.0951124,106290.0,106280.0,0.9928422]
[1762184157980,0.0951124,106290.0,106280.0,0.83718207]
[1762184158279,0.7384524,106290.0,106270.0,0.4450147]
[1762184158476,0.5022609,106280.0,106270.0,0.4450147]
[1762184158672,0.5022609,106280.0,106270.0,0.3608]
[1762184158876,0.0941209,106280.0,106270.0,0.4450147]
[1762184159071,0.0941209,106280.0,106270.0,0.3608]
[1762184159285,0.0941209,106280.0,106270.0,0.76993]
[1762184159780,0.0941209,106280.0,106270.0,0.90842048]
[1762184160081,0.0941209,106280.0,106270.0,0.76993]
[1762184160281,0.004,106290.0,106280.0,0.5032514]
[1762184160483,0.77192,106320.0,106280.0,1.08675658]
[1762184160783,0.07640901,106330.0,106310.0,0.3608]
[1762184161084,0.003,106330.0,106310.0,0.3608]
[1762184161379,0.003,106330.0,106300.0,0.3608]
[1762184161380,0.3638,106330.0,106300.0,0.3608]
[1762184161985,0.3638,106330.0,106310.0,0.3608]
[1762184162174,0.3638,106330.0,106290.0,0.49025]
[1762184162175,0.76894,106320.0,106290.0,0.49025]
[1762184162375,0.76894,106320.0,106280.0,0.4450147]
[1762184162376,0.49929048,106310.0,106280.0,0.3608]
[1762184162582,0.13849048,106300.0,106280.0,0.3608]
[1762184162883,0.89021,106290.0,106280.0,0.02388085]
[1762184163086,1.26390048,106290.0,106260.0,0.3608]
[1762184163280,0.49929048,106280.0,106260.0,0.3608]
[1762184163582,0.3608,106270.0,106250.0,7.654e-05]
[1762184163777,0.3608,106260.0,106250.0,7.654e-05]
[1762184163988,0.23528,106260.0,106250.0,0.36087654]
[1762184164282,0.43440283,106300.0,106250.0,0.59351272]
[1762184164481,0.84536283,106300.0,106270.0,0.3608]
[1762184164678,0.3608,106290.0,106270.0,0.3608]
[1762184164878,0.98385331,106300.0,106270.0,0.3608]
[1762184164879,0.77176,106300.0,106270.0,0.3608]
[1762184165084,0.48207,106320.0,106290.0,0.3608]
[1762184165283,0.89299,106320.0,106290.0,0.3608]
[1762184165482,0.003,106330.0,106320.0,0.12945]
[1762184165783,0.003,106330.0,106320.0,0.72282558]
[1762184165993,0.3608,106360.0,106330.0,0.0940762]
[1762184166175,0.3608,106360.0,106330.0,0.49929048]
[1762184166482,0.3608,106360.0,106330.0,0.4548766]
[1762184166686,0.3608,106360.0,106330.0,0.3608]
[1762184166884,0.3608,106360.0,106330.0,0.4548769]
[1762184167084,0.003,106370.0,106340.0,0.0940635]
[1762184167287,0.003,106370.0,106350.0,0.3608]
[1762184167489,1.5,106360.0,106350.0,0.4548553]
[1762184167786,1.5,106360.0,106350.0,0.90969771]
[1762184168187,0.003,106370.0,106350.0,0.7216]
[1762184168386,0.003,106370.0,106360.0,0.3608]
[1762184168785,0.008,106370.0,106360.0,0.3608]
[1762184168983,0.008,106370.0,106340.0,0.3608]
[1762184169288,1.5,106360.0,106350.0,0.3608]
[1762184169891,1.5,106360.0,106340.0,0.3608]
[1762184170085,0.3608,106390.0,106350.0,0.3608]
[1762184170286,0.003,106410.0,106390.0,0.3608]
[1762184170491,0.01033595,106410.0,106400.0,0.3608]
[1762184170680,0.002,106410.0,106400.0,0.3608]
[1762184170880,0.002,106410.0,106400.0,0.4548153]
[1762184171085,1.62984544,106440.0,106400.0,0.4548153]
[1762184171086,1.62984544,106440.0,106410.0,0.4548057]
[1762184171293,0.003,106450.0,106430.0,0.4547888]
[1762184171485,0.003,106450.0,106440.0,0.3608]
[1762184172082,0.003,106450.0,106440.0,0.4547788]
[1762184172282,1.5,106460.0,106450.0,0.4547698]
[1762184172483,0.41052,106480.0,106450.0,0.3608]
[1762184172686,0.41052,106480.0,106470.0,0.7216]
[1762184172991,0.05198296,106490.0,106470.0,0.77215114]
[1762184172992,0.003,106490.0,106470.0,0.77215114]
[1762184173194,0.003,106490.0,106480.0,0.3608]
[1762184173494,0.2152005,106500.0,106480.0,0.7216]
[1762184173681,0.0939339,106490.0,106480.0,0.3608]
[1762184173882,1.5939339,106490.0,106480.0,0.7216]
[1762184174082,1.593934,106490.0,106480.0,0.7216]
[1762184174283,0.003,106530.0,106490.0,0.3608]
[1762184174486,0.0939833,106550.0,106520.0,0.7216]
[1762184174788,0.0939833,106550.0,106540.0,0.3608]
[1762184174986,0.0939827,106550.0,106540.0,0.3608]
[1762184175887,0.3286227,106550.0,106540.0,0.3608]
[1762184176094,0.3286227,106550.0,106540.0,0.35547761]
[1762184176291,0.0939827,106550.0,106540.0,0.35547761]
[1762184176488,0.0939827,106550.0,106540.0,0.0736554]
[1762184176791,0.0001,106550.0,106540.0,0.0736554]
[1762184176986,0.3638,106570.0,106540.0,1.00320073]
[1762184176987,0.003,106570.0,106540.0,1.00320073]
[1762184177187,0.38287,106600.0,106560.0,0.7216]
[1762184177391,0.38287,106600.0,106590.0,0.7216]
[1762184177592,0.12127,106600.0,106590.0,0.7216]
[1762184177895,0.76591,106600.0,106590.0,0.7216]
[1762184178091,1.13513345,106600.0,106570.0,0.3608]
[1762184178302,1.8608,106590.0,106560.0,0.3608]
[1762184178590,0.12137,106560.0,106550.0,0.3608]
[1762184178784,0.39221,106560.0,106540.0,0.3618]
[1762184178987,0.411,106550.0,106540.0,0.3618]
[1762184179296,0.23464,106550.0,106540.0,0.7226]
[1762184179485,0.12137,106560.0,106540.0,0.7226]
[1762184179697,0.41724,106570.0,106550.0,0.3608]
[1762184179988,0.44124,106570.0,106560.0,0.3608]
[1762184180189,0.44124,106570.0,106540.0,0.3618]
[1762184180190,1.62137,106560.0,106540.0,0.3618]
[1762184180387,1.62137,106560.0,106550.0,0.3608]
[1762184180586,2.03893,106560.0,106550.0,0.3608]
[1762184181090,2.03893,106560.0,106540.0,0.5954]
[1762184181290,1.5,106560.0,106550.0,0.5954]
[1762184181591,0.13069345,106600.0,106550.0,0.6892805]
[1762184181787,0.13069345,106600.0,106590.0,0.3608]
[1762184182092,0.54689345,106600.0,106590.0,0.3608]
[1762184182288,0.78137345,106600.0,106580.0,0.3608]
[1762184182595,1.5,106590.0,106580.0,0.3608]
[1762184182792,0.0938642,106580.0,106570.0,0.3608]
[1762184183090,0.2152435,106560.0,106550.0,0.3608]
[1762184183292,0.2152435,106560.0,106550.0,0.5954]
[1762184183597,0.41616,106560.0,106550.0,0.5954]
[1762184183788,0.093874,106560.0,106550.0,0.5954]
[1762184184195,0.5099085,106570.0,106550.0,0.5954]
[1762184184505,0.5099085,106570.0,106560.0,0.3608]
[1762184184506,0.009,106570.0,106560.0,0.3608]
[1762184184689,0.009,106570.0,106560.0,0.5954]
[1762184184885,0.1028647,106570.0,106560.0,0.5954]
[1762184185092,0.1028628,106570.0,106560.0,0.5954]
[1762184185499,0.0938628,106570.0,106560.0,0.5954]
[1762184185699,0.006,106570.0,106560.0,0.5954]
[1762184186701,0.006,106570.0,106560.0,1.01771104]
[1762184186702,0.00387573,106570.0,106560.0,1.01771104]
[1762184186998,1.5,106590.0,106560.0,1.01771104]
[1762184186999,1.5,106590.0,106570.0,0.3608]
[1762184187187,1.5938451,106590.0,106580.0,0.3608]
[1762184187388,1.5,106590.0,106580.0,0.5954]
[1762184187589,1.593845,106590.0,106580.0,0.5954]
[1762184187986,1.5,106590.0,106580.0,0.5954]
[1762184188402,1.516,106590.0,106580.0,0.82996]
[1762184188797,1.516,106590.0,106580.0,0.5954]
[1762184190393,0.01173299,106610.0,106590.0,0.4386427]
[1762184190701,0.003,106610.0,106600.0,0.9562]
[1762184190902,1.503,106610.0,106600.0,0.9562]
[1762184191396,1.503,106610.0,106600.0,0.7216]
[1762184191594,1.503,106610.0,106600.0,0.9562]
[1762184191799,1.51668505,106610.0,106600.0,0.7216]
[1762184192101,1.51668505,106610.0,106590.0,0.3608]
[1762184192300,1.51668505,106610.0,106590.0,0.5954]
[1762184192508,1.87848505,106610.0,106590.0,0.5954]
[1762184193000,1.87848505,106610.0,106590.0,0.3608]
[1762184193198,0.11919,106590.0,106580.0,0.3608]
[1762184193707,0.4104,106590.0,106580.0,0.5954]
[1762184194001,1.51768505,106610.0,106580.0,0.5954]
[1762184194199,1.51768505,106610.0,106590.0,0.5954]
[1762184194400,1.51768505,106610.0,106600.0,0.3608]
[1762184194591,1.92248505,106610.0,106600.0,0.3608]
[1762184194798,1.92248505,106610.0,106590.0,0.3608]
[1762184194997,2.28328505,106610.0,106590.0,0.5954]
[1762184195391,2.28328505,106610.0,106600.0,0.2346]
[1762184195598,2.28328505,106610.0,106590.0,0.3608]
[1762184195599,1.92148505,106610.0,106590.0,0.5954]
[1762184195793,0.11919,106590.0,106580.0,0.3658]
[1762184196007,0.47999,106590.0,106580.0,0.005]
[1762184196204,0.71455,106590.0,106580.0,0.005]
[1762184196894,1.12427,106590.0,106560.0,0.3608]
[1762184197099,0.11919,106560.0,106550.0,0.3608]
[1762184197307,0.52891,106560.0,106550.0,0.3608]
[1762184197507,0.52891,106560.0,106550.0,0.5954]
[1762184197900,0.52891,106560.0,106550.0,0.2346]
[1762184198100,0.88971,106560.0,106540.0,0.2346]
[1762184198396,0.3608,106550.0,106520.0,0.3608]
[1762184198607,0.47999,106560.0,106540.0,0.3608]
[1762184198807,0.40968,106550.0,106540.0,0.3608]
[1762184199106,0.77048,106550.0,106520.0,0.3608]
[1762184199300,0.47999,106560.0,106520.0,0.3608]
[1762184199301,0.47999,106560.0,106540.0,0.3608]
[1762184199805,0.40968,106550.0,106540.0,0.5954]
[1762184199998,0.11919,106560.0,106540.0,0.7216]
[1762184200198,0.11919,106560.0,106550.0,0.5954]
[1762184200398,0.52887,106560.0,106540.0,0.3608]
[1762184200604,0.52887,106560.0,106540.0,0.5954]
[1762184200799,0.88967,106560.0,106540.0,0.5954]
[1762184201003,0.88967,106560.0,106540.0,0.3608]
[1762184201004,0.40968,106550.0,106540.0,0.3608]
[1762184201409,0.11919,106560.0,106540.0,0.38570828]
[1762184201603,0.40968,106550.0,106530.0,0.41894403]
[1762184201798,0.41838,106540.0,106530.0,0.38570828]
[1762184202008,0.53757,106530.0,106520.0,0.04390828]
[1762184202207,0.41838,106520.0,106510.0,0.05065016]
[1762184202414,0.82806,106520.0,106510.0,0.05065016]
[1762184202707,1.42358,106520.0,106510.0,0.03366281]
[1762184202907,0.41838,106510.0,106500.0,0.05364959]
[1762184203212,0.41838,106510.0,106480.0,0.06745463]
[1762184203213,0.11919,106500.0,106480.0,0.06745463]
[1762184203402,0.77048,106490.0,106480.0,0.06745463]
[1762184203802,1.00533515,106490.0,106480.0,0.06745463]